bitfinex/quotes_SOLUSD_20260119
["timestamp","ask_amount","ask_price","bid_price","bid_amount"]
[1768841372749,4.59521504,134.15,134.12,1.55105519]
[1768841372973,7.45489786,134.14,134.12,1.55105519]
[1768841379869,9.05856214,134.15,134.12,1.55105519]
[1768841382885,7.45460489,134.15,134.12,1.55105519]
[1768841384476,1.5382198,134.17,134.12,1.55105519]
[1768841384682,20.84947759,134.17,134.13,1.5564682]
[1768841384884,4.52947759,134.17,134.13,1.5564682]
[1768841387873,7.45378652,134.16,134.13,1.5564682]
[1768841388765,10.44504431,134.16,134.13,1.5564682]
[1768841389580,7.45378652,134.16,134.13,1.5564682]
[1768841395494,10.44270969,134.16,134.13,1.5564682]
[1768841396283,7.45378652,134.16,134.13,1.5564682]
[1768841397378,1.58377202,134.15,134.12,1.61877995]
[1768841398782,9.03855661,134.15,134.12,1.61877995]
[1768841401774,12.02747978,134.15,134.12,1.61877995]
[1768841404080,1.58377202,134.14,134.11,1.61877995]
[1768841404285,1.58377202,134.13,134.1,1.61877995]
[1768841404483,4.57269519,134.13,134.1,1.61877995]
[1768841405581,1.58377202,134.13,134.1,1.61877995]
[1768841405989,9.03941774,134.13,134.1,1.61877995]
[1768841407205,7.45564572,134.13,134.11,1.61877995]
[1768841408401,1.58377202,134.13,134.11,1.61877995]
[1768841409401,9.03930414,134.13,134.1,4.60770312]
[1768841410403,9.03930414,134.13,134.1,1.61877995]
[1768841410796,1.58377202,134.13,134.1,1.61877995]
[1768841411000,7.45509955,134.14,134.11,1.61877995]
[1768841411783,9.03887157,134.14,134.11,1.61877995]
[1768841413510,12.02779474,134.14,134.11,1.61877995]
[1768841415319,12.02779474,134.14,134.1,1.61877995]
[1768841415705,1.58377202,134.13,134.1,1.61877995]
[1768841416327,9.03887157,134.14,134.1,1.61877995]
[1768841416524,12.02779474,134.14,134.1,1.61877995]
[1768841417516,9.03887157,134.14,134.1,1.61877995]
[1768841417708,1.58377202,134.13,134.1,1.61877995]
[1768841422706,9.0392666,134.13,134.1,1.61877995]
[1768841423222,7.45549458,134.13,134.1,1.61877995]
[1768841423407,1.68149838,134.12,134.1,1.61877995]
[1768841423610,9.13699296,134.13,134.1,1.61877995]
[1768841424327,1.68149838,134.13,134.1,9.07585983]
[1768841425222,4.67042155,134.13,134.1,1.61877995]
[1768841425416,1.68149838,134.12,134.08,7.45797059]
[1768841425626,1.68149838,134.12,134.09,1.57739201]
[1768841426508,9.13707832,134.13,134.1,1.57739201]
[1768841427512,7.45557994,134.13,134.1,1.57739201]
[1768841427915,1.68149838,134.12,134.1,1.57739201]
[1768841428931,9.13707832,134.13,134.1,1.57739201]
[1768841429424,12.12555409,134.14,134.1,1.57739201]
[1768841433346,7.45467791,134.15,134.12,1.57739201]
[1768841433638,9.13617629,134.15,134.12,1.54739201]
[1768841434309,1.68149838,134.14,134.11,2.98892317]
[1768841435543,1.68149838,134.14,134.11,4.56631518]
[1768841435725,1.68149838,134.14,134.12,2.98892317]
[1768841436038,1.68149838,134.14,134.11,4.56631518]
[1768841436535,10.44360108,134.15,134.12,1.57739201]
[1768841436536,2.98892317,134.15,134.12,1.57739201]
[1768841436721,1.68149838,134.14,134.1,7.45681831]
[1768841436923,1.68149838,134.13,134.09,10.44636217]
[1768841438040,1.68149838,134.12,134.08,10.44687085]
[1768841438226,4.67042155,134.12,134.08,7.45794768]
[1768841438533,1.68149838,134.12,134.08,2.98892317]
[1768841438738,1.68149838,134.12,134.09,1.57739201]
[1768841439036,1.68149838,134.12,134.09,4.56631518]
[1768841440637,1.68149838,134.12,134.1,1.60030043]
[1768841440840,8.99839284,134.13,134.1,1.60030043]
[1768841441922,8.99748596,134.14,134.11,1.60030043]
[1768841442130,2.98892317,134.15,134.12,1.60030043]
[1768841442131,11.98580711,134.15,134.12,1.60030043]
[1768841442648,8.99688394,134.15,134.12,1.60030043]
[1768841445154,1.54253194,134.14,134.12,1.60030043]
[1768841445457,1.54253194,134.14,134.11,12.04574199]
[1768841449160,1.54253194,134.14,134.11,4.5892236]
[1768841449360,8.99688394,134.15,134.12,1.60030043]
[1768841451357,1.54253194,134.14,134.12,1.60030043]
[1768841455264,1.54253194,134.14,134.11,4.54703867]
[1768841455668,1.66688475,134.13,134.08,1.55781038]
[1768841455966,4.65611304,134.13,134.09,1.55781038]
[1768841457252,9.1225433,134.13,134.1,1.55781038]
[1768841460474,1.66688475,134.12,134.09,1.55781038]
[1768841460683,4.65611304,134.12,134.09,1.55781038]
[1768841461047,1.66688475,134.11,134.08,1.55781038]
[1768841465459,1.60688476,134.11,134.08,1.55781038]
[1768841467375,9.06347442,134.11,134.08,1.55781038]
[1768841467671,1.66688475,134.1,134.07,10.44753221]
[1768841467872,9.12347441,134.11,134.08,1.55781038]
[1768841468887,4.65611304,134.1,134.07,1.55781038]
[1768841469578,2.98922829,134.09,134.07,1.55781038]
[1768841469765,12.11374886,134.1,134.07,1.55781038]
[1768841470391,1.66688475,134.08,134.05,70.51752515]
[1768841470577,2.98922829,134.09,134.06,1.55781038]
[1768841471176,2.98922829,134.09,134.04,9.01817603]
[1768841471371,2.98922829,134.09,134.04,12.00740432]
[1768841471877,7.45823389,134.08,134.04,12.00740432]
[1768841472280,7.45823389,134.08,134.05,1.55781038]
[1768841472480,9.12511864,134.08,134.05,1.55781038]
[1768841474688,10.44746218,134.08,134.05,1.55781038]
[1768841474884,1.66688475,134.07,134.04,1.55781038]
[1768841477193,12.11434693,134.08,134.04,1.55781038]
[1768841482271,1.66688475,134.07,134.04,1.55781038]
[1768841482588,1.66688475,134.06,134.03,1.55781038]
[1768841483087,4.63729904,134.07,134.03,1.55781038]
[1768841484598,12.09641732,134.07,134.03,1.55781038]
[1768841484772,12.09641732,134.07,134.04,1.66072355]
[1768841485293,9.10718903,134.07,134.04,1.66072355]
[1768841486179,9.10718903,134.07,134.04,4.64995184]
[1768841486381,9.10718903,134.07,134.04,1.66072355]
[1768841487595,1.64807075,134.06,134.04,1.66072355]
[1768841487803,10.44834657,134.07,134.04,1.66072355]
[1768841488501,10.44834657,134.07,134.03,1.66072355]
[1768841488502,29.09532203,134.07,134.03,1.66072355]
[1768841488715,2.98922829,134.06,134.03,1.66072355]
[1768841489798,12.09681447,134.06,134.03,1.66072355]
[1768841490108,9.10758618,134.06,134.03,1.66072355]
[1768841490984,12.09681447,134.06,134.03,1.66072355]
[1768841496206,9.10758618,134.06,134.03,1.66072355]
[1768841501313,7.45951543,134.06,134.03,1.66072355]
[1768841501519,12.12054706,134.07,134.04,1.68183479]
[1768841503221,9.13131877,134.07,134.04,1.68183479]
[1768841503602,1.67223525,134.06,134.04,1.68183479]
[1768841504822,9.13131877,134.07,134.04,1.68183479]
[1768841505496,1.67223525,134.06,134.04,1.68183479]
[1768841506122,1.67223525,134.05,134.02,12.33235441]
[1768841506516,1.67223525,134.05,134.03,1.68183479]
[1768841506820,9.13168538,134.06,134.03,1.68183479]
[1768841507401,1.67223525,134.06,134.03,1.68183479]
[1768841507602,1.67223525,134.07,134.04,1.68183479]
[1768841507802,1.67223525,134.08,134.05,1.68183479]
[1768841508018,12.11942394,134.09,134.06,1.68183479]
[1768841510018,9.13019565,134.09,134.06,1.68183479]
[1768841510207,9.07019566,134.09,134.06,1.68183479]
[1768841510408,8.07019567,134.09,134.06,1.68183479]
[1768841510629,11.05942396,134.09,134.06,1.68183479]
[1768841510808,8.07019567,134.09,134.06,1.68183479]
[1768841512026,1.67223525,134.08,134.06,1.68183479]
[1768841512224,6.39796042,134.09,134.06,1.68183479]
[1768841512414,11.05942396,134.09,134.06,1.68183479]
[1768841512721,1.63322378,134.07,134.04,1.68183479]
[1768841513319,9.09189685,134.08,134.05,1.57062953]
[1768841515333,12.08463099,134.08,134.05,1.57062953]
[1768841517735,9.09189685,134.08,134.05,1.57062953]
[1768841521340,1.63322378,134.07,134.05,1.57062953]
[1768841522038,1.57322378,134.07,134.05,1.57062953]
[1768841522836,9.03219645,134.07,134.04,1.57062953]
[1768841523744,12.02493059,134.07,134.04,1.57062953]
[1768841526744,9.03219645,134.07,134.04,1.57062953]
[1768841529445,12.02493059,134.07,134.04,1.57062953]
[1768841531339,9.03219645,134.07,134.04,1.57062953]
[1768841535051,8.97219644,134.07,134.04,1.57062953]
[1768841535551,11.96493058,134.07,134.04,1.57062953]
[1768841535730,11.90493056,134.07,134.04,1.57062953]
[1768841536730,8.91219642,134.07,134.04,1.57062953]
[1768841541552,7.45897267,134.07,134.04,1.57062953]
[1768841542034,7.45897267,134.07,134.04,2.99273414]
[1768841542238,7.45897267,134.07,134.05,1.57062953]
[1768841542239,7.39897266,134.07,134.05,1.57062953]
[1768841542450,9.09170323,134.08,134.05,1.57062953]
[1768841545938,9.09170323,134.08,134.05,4.63287143]
[1768841546138,1.54941651,134.1,134.07,4.63287143]
[1768841546640,1.54941651,134.1,134.08,1.64013729]
[1768841547537,9.0066283,134.1,134.08,1.64013729]
[1768841548771,7.45721179,134.1,134.08,4.63287143]
[1768841550574,7.45721179,134.1,134.08,1.64013729]
[1768841552362,2.99273414,134.12,134.09,4.63287143]
[1768841552363,9.00591942,134.12,134.09,4.63287143]
[1768841552665,9.00494889,134.13,134.1,4.63287143]
[1768841555074,9.00494889,134.13,134.11,1.64013729]
[1768841555369,9.00494889,134.13,134.1,4.63287143]
[1768841558762,9.00494889,134.13,134.1,1.64013729]
[1768841558973,9.00494889,134.13,134.1,4.63287143]
[1768841559873,1.54941651,134.13,134.1,4.63287143]
[1768841560549,1.63518861,134.16,134.13,1.58725309]
[1768841560868,1.63518861,134.16,134.14,2.96273415]
[1768841561062,1.63518861,134.16,134.14,2.93273416]
[1768841561768,9.08909976,134.16,134.14,2.93273416]
[1768841564975,9.08909976,134.16,134.13,1.55725312]
[1768841565163,9.08909976,134.16,134.14,2.99273414]
[1768841566369,9.08909976,134.16,134.13,1.55725312]
[1768841566554,9.08909976,134.16,134.14,2.99273414]
[1768841566755,1.63518861,134.15,134.12,4.57998723]
[1768841567671,9.08977029,134.15,134.13,2.99273414]
[1768841573388,9.08977029,134.15,134.13,4.68441677]
[1768841574186,9.08977029,134.15,134.12,4.68441677]
[1768841574784,9.08977029,134.15,134.13,2.99273414]
[1768841574986,9.08977029,134.15,134.13,2.9885469]
[1768841575692,7.45400835,134.16,134.14,1.69168263]
[1768841575883,7.45400835,134.16,134.14,4.68022953]
[1768841576191,9.15569427,134.16,134.14,1.69168263]
[1768841576785,9.15569427,134.16,134.13,4.68022953]
[1768841577689,7.45400835,134.16,134.14,1.69168263]
[1768841577892,9.15569427,134.16,134.14,1.69168263]
[1768841578274,9.15569427,134.16,134.13,1.69168263]
[1768841580774,1.70168592,134.18,134.13,2.9885469]
[1768841580997,1.70168592,134.17,134.14,1.69168263]
[1768841581372,1.70168592,134.18,134.15,1.69168263]
[1768841581578,1.70168592,134.19,134.15,2.9885469]
[1768841582275,1.70168592,134.19,134.13,7.45537232]
[1768841582475,1.70168592,134.19,134.14,2.9885469]
[1768841582696,1.70168592,134.19,134.15,2.9885469]
[1768841582892,9.15353006,134.2,134.16,2.9885469]
[1768841583197,9.15353006,134.2,134.16,2.95854691]
[1768841583395,0.1,134.21,134.13,26.09400648]
[1768841583594,0.1,134.21,134.19,1.69168263]
[1768841583768,0.1,134.22,134.2,1.69168263]
[1768841583975,0.1,134.23,134.17,1.69168263]
[1768841584177,0.1,134.23,134.2,4.68022953]
[1768841584376,0.1,134.23,134.21,1.69168263]
[1768841587776,1.70168592,134.22,134.18,2.9885469]
[1768841587980,1.70168592,134.22,134.19,1.69168263]
[1768841588802,4.79023282,134.23,134.19,1.69168263]
[1768841590706,9.25174167,134.23,134.19,10.44064783]
[1768841590910,9.25174167,134.23,134.2,1.69168263]
[1768841590911,1.80168592,134.23,134.2,1.69168263]
[1768841591412,9.25159401,134.23,134.2,1.69168263]
[1768841604824,7.54990809,134.23,134.2,1.69168263]
[1768841605519,7.54990809,134.23,134.2,4.68022953]
[1768841605827,0.1,134.23,134.21,1.56827336]
[1768841607131,0.1,134.23,134.22,1.56827336]
[1768841622421,1.71697864,134.29,134.25,1.69440655]
[1768841622627,1.71697864,134.27,134.22,16.32]
[1768841622822,1.71697864,134.27,134.23,2.9885469]
[1768841624237,9.16514076,134.27,134.23,2.9885469]
[1768841624842,9.16514076,134.27,134.24,1.69440655]
[1768841625139,9.16514076,134.27,134.24,2.19440655]
[1768841625629,1.71697864,134.26,134.24,0.5]
[1768841625836,1.71697864,134.26,134.23,4.68295345]
[1768841626238,1.71697864,134.26,134.24,1.69440655]
[1768841628038,7.44816212,134.27,134.24,1.69440655]
[1768841628339,9.16514076,134.27,134.24,1.69440655]
[1768841629642,9.16435136,134.28,134.25,1.69440655]
[1768841630137,12.15289826,134.28,134.25,1.69440655]
[1768841630342,9.16435136,134.28,134.25,1.69440655]
[1768841634141,9.16435136,134.28,134.25,4.68295345]
[1768841634646,1.63291412,134.27,134.25,1.69440655]
[1768841636849,9.08028684,134.28,134.25,1.69440655]
[1768841640147,1.63291412,134.27,134.24,1.63762379]
[1768841640330,1.63291412,134.27,134.23,1.63762379]
[1768841640533,1.63291412,134.26,134.23,1.63762379]
[1768841641562,1.63291412,134.26,134.24,1.63762379]
[1768841642547,1.63291412,134.26,134.24,4.62089725]
[1768841642751,1.63291412,134.28,134.25,1.63762379]
[1768841642931,9.08032766,134.28,134.25,1.63762379]
[1768841643551,9.0797206,134.29,134.25,2.98327346]
[1768841643848,1.63291412,134.31,134.28,1.63762379]
[1768841644048,1.63291412,134.31,134.28,4.59089725]
[1768841644361,1.63291412,134.31,134.28,1.60762379]
[1768841644656,9.07878261,134.31,134.28,1.60762379]
[1768841644951,9.07878261,134.31,134.28,4.56089725]
[1768841645249,9.07878261,134.31,134.28,1.57762379]
[1768841647954,1.63291412,134.29,134.27,1.63762379]
[1768841651156,9.07909861,134.3,134.27,1.63762379]
[1768841654058,7.44618449,134.3,134.27,4.62089725]
[1768841654363,7.44618449,134.3,134.28,1.63762379]
[1768841654959,9.07850666,134.31,134.28,1.63762379]
[1768841655665,1.63291412,134.32,134.29,1.63762379]
[1768841655858,1.63291412,134.33,134.3,1.63762379]
[1768841656162,1.63291412,134.32,134.29,1.63762379]
[1768841656763,4.61618758,134.32,134.29,1.63762379]
[1768841657964,12.06160776,134.32,134.29,1.63762379]
[1768841658661,1.63291412,134.31,134.27,2.98327346]
[1768841658861,1.63291412,134.31,134.28,1.63762379]
[1768841661872,9.07857578,134.31,134.28,1.63762379]
[1768841665978,9.01485342,134.31,134.28,1.63762379]
[1768841669499,11.99812688,134.31,134.28,1.63762379]
[1768841671608,7.44566166,134.31,134.28,1.63762379]
[1768841672269,1.56919176,134.36,134.31,1.62695081]
[1768841672569,7.44269127,134.36,134.33,1.62695081]
[1768841672764,1.56919176,134.39,134.35,1.62695081]
[1768841673086,4.55246522,134.4,134.37,1.62695081]
[1768841673281,4.55246522,134.4,134.36,1.62695081]
[1768841673282,1.56919176,134.4,134.36,1.62695081]
[1768841673581,26.03972918,134.41,134.37,1.62695081]
[1768841673783,1.66919176,134.42,134.39,1.62695081]
[1768841673990,4.55246522,134.4,134.34,16.32]
[1768841674186,1.56919176,134.41,134.34,16.32]
[1768841674372,0.1,134.42,134.39,2.98327346]
[1768841674578,0.1,134.42,134.38,7.44136312]
[1768841674777,0.1,134.42,134.4,2.98327346]
[1768841675084,0.1,134.42,134.41,2.98327346]
[1768841675286,0.1,134.42,134.4,2.98327346]
[1768841675497,0.1,134.42,134.38,42.34532204]
[1768841675880,0.1,134.42,134.4,4.01123915]
[1768841676281,1e-08,134.44,134.42,0.9279713]
[1768841676492,1e-08,134.44,134.42,3.91124476]
[1768841676996,1e-08,134.44,134.42,0.9279713]
[1768841677387,1.56919177,134.44,134.4,0.92797684]
[1768841677581,4.55246523,134.44,134.4,0.92797684]
[1768841677982,2.98327346,134.43,134.39,1.62695081]
[1768841678499,26.03235231,134.45,134.39,1.62695081]
[1768841678500,2.98327346,134.42,134.39,1.62695081]
[1768841678698,18.59637106,134.44,134.39,1.62695081]
[1768841678900,7.53723842,134.46,134.42,1.62695081]
[1768841679195,7.43494423,134.5,134.46,1.62695081]
[1768841679398,7.85322309,134.51,134.47,1.62695081]
[1768841679581,7.85322309,134.51,134.47,4.61022427]
[1768841679999,9.42241485,134.51,134.47,4.61022427]
[1768841680196,30.99166704,134.51,134.47,4.61022427]
[1768841680401,9.00455267,134.5,134.46,4.63275949]
[1768841680908,11.98782613,134.5,134.46,4.63275949]
[1768841681108,30.57518672,134.5,134.46,1.64948603]
[1768841681286,1.55726275,134.49,134.46,1.64948603]
[1768841681482,2.98327346,134.49,134.44,4.63275949]
[1768841681683,1.55726275,134.48,134.44,1.64948603]
[1768841681996,1.55726275,134.48,134.44,4.63275949]
[1768841682205,1.55726275,134.49,134.45,4.63275949]
[1768841682580,1.55726275,134.49,134.42,16.3]
[1768841682581,7.4355643,134.49,134.46,4.63275949]
[1768841683900,7.4355643,134.49,134.46,1.64948603]
[1768841684306,1.55726275,134.47,134.44,2.98327346]
[1768841684785,1.55726275,134.47,134.44,4.63275949]
[1768841685106,1.55726275,134.48,134.45,2.98327346]
[1768841685403,7.4355643,134.49,134.46,4.63275949]
[1768841685588,1.55726275,134.5,134.47,2.98327346]
[1768841685589,8.99240093,134.5,134.47,2.98327346]
[1768841685907,8.99240093,134.5,134.47,4.63275949]
[1768841686685,9.41058288,134.51,134.48,4.63275949]
[1768841686999,9.41058288,134.51,134.48,1.64948603]
[1768841687203,7.43405679,134.52,134.48,2.98327346]
[1768841687399,7.43405679,134.52,134.49,4.63275949]
[1768841687598,7.43405679,134.52,134.49,1.64948603]
[1768841687805,7.43349271,134.53,134.49,4.63275949]
[1768841689310,8.99075546,134.53,134.49,4.63275949]
[1768841689806,8.99075546,134.53,134.49,12.06824562]
[1768841689998,1.55726275,134.54,134.51,1.64948603]
[1768841690208,7.43162901,134.56,134.52,1.64948603]
[1768841690388,1.55726275,134.55,134.52,1.64948603]
[1768841690808,1.55726275,134.55,134.52,4.63275949]
[1768841691010,0.1,134.58,134.53,1.64948603]
[1768841691185,0.1,134.58,134.49,42.32422878]
[1768841691186,0.1,134.58,134.56,1.64948603]
[1768841691512,0.1,134.58,134.56,4.63275949]
[1768841691697,1.55726275,134.62,134.58,1.64948603]
[1768841691894,1.55726275,134.62,134.55,1.64948603]
[1768841692096,8.98604556,134.62,134.58,1.64948603]
[1768841692295,8.98604556,134.62,134.58,4.63275949]
[1768841692702,1.70420581,134.61,134.58,2.98327346]
[1768841692907,1.20420581,134.61,134.58,2.95327346]
[1768841693217,1.20420581,134.61,134.58,1.57647176]
[1768841693413,25.99957466,134.62,134.58,1.57647176]
[1768841693616,28.98284812,134.62,134.58,1.57647176]
[1768841694511,25.99331599,134.65,134.58,4.55974522]
[1768841694711,2.98327346,134.63,134.59,1.57647176]
[1768841695013,1.70420581,134.61,134.58,1.57647176]
[1768841695705,4.68747927,134.61,134.58,1.57647176]
[1768841696201,1.70420581,134.61,134.58,1.57647176]
[1768841696608,7.4294205,134.6,134.58,1.57647176]
[1768841696806,1.70420581,134.61,134.58,1.57647176]
[1768841698598,9.13328499,134.61,134.58,1.57647176]
[1768841699205,9.13328499,134.61,134.58,4.54473672]
[1768841699407,17.98420581,134.65,134.59,1.57647176]
[1768841699610,7.42744602,134.64,134.61,1.57647176]
[1768841700008,4.67247077,134.63,134.59,1.57647176]
[1768841700211,1.70420581,134.61,134.57,1.57647176]
[1768841700409,1.70420581,134.62,134.57,2.96826496]
[1768841700615,1.70420581,134.62,134.58,4.54473672]
[1768841700822,1.70420581,134.62,134.58,1.57647176]
[1768841701019,4.67247077,134.59,134.54,1.57647176]
[1768841701221,4.67247077,134.6,134.56,1.57647176]
[1768841701523,1.70420581,134.58,134.54,1.57647176]
[1768841701726,7.4299725,134.59,134.51,1.57647176]
[1768841701727,4.67247077,134.56,134.51,1.57647176]
[1768841701910,1.70420581,134.56,134.51,1.57647176]
[1768841702220,2.96826496,134.54,134.51,1.57647176]
[1768841702606,4.67247077,134.55,134.51,1.57647176]
[1768841702923,2.96826496,134.54,134.51,1.57647176]
[1768841703109,2.96826496,134.53,134.51,1.57647176]
[1768841703311,2.96826496,134.52,134.49,1.57647176]
[1768841703825,12.10540309,134.54,134.5,1.57647176]
[1768841704521,12.10540309,134.54,134.5,4.46952672]
[1768841705125,9.13713813,134.54,134.5,2.96826496]
[1768841705423,12.10540309,134.54,134.5,2.96826496]
[1768841705926,9.13713813,134.54,134.48,7.4358991]
[1768841706122,12.10540309,134.54,134.49,2.96826496]
[1768841706302,9.13713813,134.54,134.49,2.96826496]
[1768841706503,9.13713813,134.54,134.5,4.54473672]
[1768841706807,18.57839404,134.57,134.51,2.96826496]
[1768841707000,17.98420581,134.58,134.54,4.54473672]
[1768841707203,9.13528257,134.57,134.53,4.54473672]
[1768841707927,12.10354753,134.57,134.53,4.54473672]
[1768841708128,12.10354753,134.57,134.51,7.43385468]
[1768841708129,1.70420581,134.56,134.52,2.96826496]
[1768841708333,1.70420581,134.56,134.52,4.54473672]
[1768841708517,4.67247077,134.56,134.52,4.54473672]
[1768841708722,4.67247077,134.56,134.52,1.57647176]
[1768841708907,1.70420581,134.56,134.52,1.57647176]
[1768841709128,12.10447957,134.56,134.52,1.57647176]
[1768841709332,12.10447957,134.56,134.52,4.54473672]
[1768841709829,4.67247077,134.55,134.51,1.57647176]
[1768841710014,26.01108133,134.56,134.47,43.18318373]
[1768841710015,4.67247077,134.54,134.49,4.54473672]
[1768841710734,1.70420581,134.54,134.5,1.57647176]
[1768841710931,4.67247077,134.54,134.5,1.57647176]
[1768841711230,7.43328625,134.53,134.5,1.57647176]
[1768841711427,7.43328625,134.53,134.5,4.54473672]
[1768841712225,7.43328625,134.53,134.5,1.57647176]
[1768841712420,7.43328625,134.53,134.5,4.54473672]
[1768841712627,7.43295784,134.54,134.51,4.54473672]
[1768841713738,7.43295784,134.54,134.51,1.57647176]
[1768841713739,10.4012228,134.54,134.51,1.57647176]
[1768841714038,7.43295784,134.54,134.51,1.57647176]
[1768841714428,9.13716365,134.54,134.5,1.57647176]
[1768841714630,9.13716365,134.54,134.5,4.54473672]
[1768841715042,9.13659711,134.55,134.52,1.57647176]
[1768841715544,9.13659711,134.55,134.52,4.54473672]
[1768841715740,7.4323913,134.55,134.52,4.54473672]
[1768841716541,7.43162901,134.56,134.52,1.57647176]
[1768841716738,12.10409978,134.56,134.52,1.57647176]
[1768841716940,30.68317231,134.56,134.52,1.57647176]
[1768841717444,2.96826496,134.55,134.52,1.57647176]
[1768841717834,4.67247077,134.55,134.5,4.54473672]
[1768841718042,4.67247077,134.54,134.5,1.57647176]
[1768841718243,4.67247077,134.52,134.48,1.57647176]
[1768841718739,10.40265645,134.51,134.48,1.57647176]
[1768841718935,2.96826496,134.5,134.48,1.57647176]
[1768841719120,10.40265645,134.51,134.48,1.57647176]
[1768841719529,7.43439149,134.51,134.48,1.57647176]
[1768841719734,2.96826496,134.51,134.48,1.57647176]
[1768841719932,12.10654512,134.52,134.48,1.57647176]
[1768841720228,12.10654512,134.52,134.48,9.01250612]
[1768841720429,12.10654512,134.52,134.48,11.98077108]
[1768841720839,20.28416371,134.56,134.52,1.57647176]
[1768841721247,9.13608397,134.56,134.52,4.54473672]
[1768841722248,12.10434893,134.56,134.52,4.54473672]
[1768841722549,1.70420581,134.52,134.48,1.57647176]
[1768841722724,4.67247077,134.52,134.49,1.57647176]
[1768841723046,4.51426873,134.53,134.49,9.07647176]
[1768841723433,1.54600377,134.53,134.49,9.07647176]
[1768841723620,1.54600377,134.53,134.5,2.96826496]
[1768841723822,8.9797259,134.53,134.49,12.02194896]
[1768841724042,11.94799086,134.53,134.49,4.52194896]
[1768841724233,11.94799086,134.53,134.49,1.553684]
[1768841724433,2.96826496,134.52,134.49,1.553684]
[1768841724646,4.51426873,134.52,134.48,1.553684]
[1768841725744,2.96826496,134.51,134.48,1.553684]
[1768841726046,7.43494423,134.5,134.48,1.553684]
[1768841726449,10.40320919,134.5,134.47,1.553684]
[1768841726650,11.94893681,134.51,134.47,1.553684]
[1768841726820,11.94893681,134.51,134.47,8.38064762]
[1768841727025,15.80763547,134.51,134.47,8.38064762]
[1768841727246,15.80763547,134.51,134.47,1.553684]
[1768841728262,15.80763547,134.51,134.48,0.5]
[1768841729059,7.43426986,134.52,134.48,0.5]
[1768841729241,7.43426986,134.52,134.49,1.553684]
[1768841730158,7.43426986,134.52,134.49,8.38064762]
[1768841732569,1.54600377,134.51,134.48,0.5]
[1768841733062,27.56487071,134.52,134.48,2.053684]
[1768841733360,1.54600377,134.51,134.48,2.053684]
[1768841734473,7.43494423,134.5,134.48,2.053684]
[1768841735763,8.9806128,134.51,134.48,2.053684]
[1768841738383,8.98009285,134.52,134.48,2.053684]
[1768841738670,7.43408908,134.52,134.49,1.553684]
[1768841739644,15.80705647,134.52,134.49,1.553684]
[1768841739844,8.98009285,134.52,134.49,1.553684]
[1768841740051,15.80705647,134.52,134.49,1.553684]
[1768841740545,15.80705647,134.52,134.48,2.09626618]
[1768841741568,8.98009285,134.52,134.48,2.09626618]
[1768841743279,15.80705647,134.52,134.48,2.09626618]
[1768841743481,8.4876656,134.51,134.48,0.5]
[1768841743983,8.4876656,134.51,134.47,1.59626618]
[1768841744192,8.4876656,134.49,134.45,63.09626618]
[1768841744485,8.4876656,134.49,134.45,1.59626618]
[1768841744685,8.4876656,134.49,134.45,8.4232298]
[1768841744863,8.4876656,134.49,134.45,1.59626618]
[1768841745259,34.51384049,134.48,134.45,1.59626618]
[1768841745476,6.82696362,134.47,134.45,1.59626618]
[1768841745781,34.51384049,134.48,134.45,1.59626618]
[1768841746856,8.4876656,134.47,134.43,1.59626618]
[1768841747661,9.09784832,134.47,134.43,6.82696362]
[1768841747878,7.43632883,134.48,134.44,8.4232298]
[1768841748083,7.43632883,134.48,134.44,1.59626618]
[1768841748285,9.09703081,134.48,134.44,8.4232298]
[1768841748485,15.92399443,134.48,134.44,8.4232298]
[1768841748688,15.92399443,134.48,134.45,5.47272923]
[1768841748979,12.07190528,134.48,134.44,4.57114065]
[1768841749183,30.6620302,134.48,134.44,1.59626618]
[1768841750384,4.63557645,134.47,134.44,1.59626618]
[1768841750596,4.63557645,134.47,134.45,0.9]
[1768841750898,4.63557645,134.47,134.44,1.59626618]
[1768841751396,7.43715603,134.46,134.43,4.57114065]
[1768841751603,9.09785801,134.46,134.43,1.59626618]
[1768841751899,12.07273248,134.46,134.43,1.59626618]
[1768841752202,1.66070198,134.45,134.42,1.59626618]
[1768841752380,10.4120305,134.46,134.42,1.59626618]
[1768841752580,29.00492057,134.46,134.42,1.59626618]
[1768841753008,18.59092009,134.48,134.42,7.43909614]
[1768841753188,7.43494423,134.5,134.45,4.48526455]
[1768841753502,19.25487447,134.49,134.45,4.48526455]
[1768841753678,19.25487447,134.49,134.45,1.51039008]
[1768841754300,9.0788711,134.48,134.45,1.51039008]
[1768841754994,11.99374556,134.48,134.45,1.51039008]
[1768841755183,11.99374556,134.48,134.44,4.48526455]
[1768841755381,9.01887109,134.48,134.44,4.48526455]
[1768841757087,11.99374556,134.48,134.43,1.51039008]
[1768841757399,11.99374556,134.48,134.44,1.51039008]
[1768841757801,9.01887109,134.48,134.45,1.51039008]
[1768841758015,8.95887106,134.48,134.45,1.51039008]
[1768841758186,11.93374553,134.48,134.45,1.51039008]
[1768841760913,11.93379443,134.48,134.45,1.51039008]
[1768841761799,8.898871,134.48,134.45,1.51039008]
[1768841762215,4.6177445,134.52,134.48,1.51039008]
[1768841762516,9.07740031,134.51,134.48,1.51039008]
[1768841763094,1.64282113,134.49,134.46,1.51039008]